[Event "January 2 Early 2024"]
[Site "https://www.chess.com"]
[Date "2024.01.02"]
[Round "8"]
[White "Molina, Roberto Junio Brito"]
[Black "Bartel, Michal"]
[Result "1-0"]
[Board "43"]
[TimeControl "180+1"]
[WhiteFideId "2109450"]
[BlackFideId "1119257"]
[WhiteElo "2801"]
[BlackElo "2652"]
[WhiteTeam "BRA"]
[BlackTeam "POL"]
[WhiteClock "0:00:19"]
[BlackClock "0:01:51"]

1. d4 {[%clk 0:02:58]}  Nf6 {[%clk 0:03:00]} 2. Nf3 {[%clk 0:02:55]}  c5 {[%clk 0:03:00]} 3. d5 {[%clk 0:02:54]}  e6 {[%clk 0:03:00]} 4. c4 {[%clk 0:02:54]}  exd5 {[%clk 0:03:00]} 5. cxd5 {[%clk 0:02:55]}  d6 {[%clk 0:03:01]} 6. Nc3 {[%clk 0:02:55]}  g6 {[%clk 0:03:01]} 7. e4 {[%clk 0:02:55]}  Bg7 {[%clk 0:03:02]} 8. h3 {[%clk 0:02:56]}  O-O {[%clk 0:03:02]} 9. Bd3 {[%clk 0:02:57]}  Re8 {[%clk 0:03:03]} 10. O-O {[%clk 0:02:56]}  c4 {[%clk 0:03:03]} 11. Bc2 {[%clk 0:02:54]}  b5 {[%clk 0:03:03]} 12. Nxb5 {[%clk 0:02:48]}  Nxe4 {[%clk 0:03:03]} 13. Re1 {[%clk 0:02:44]}  Nf6 {[%clk 0:03:02]} 14. Rxe8+ {[%clk 0:02:39]}  Nxe8 {[%clk 0:03:03]} 15. Nc3 {[%clk 0:02:32]}  Nd7 {[%clk 0:03:00]} 16. Be3 {[%clk 0:02:30]}  Qc7 {[%clk 0:02:55]} 17. Bd4 {[%clk 0:02:30]}  Nef6 {[%clk 0:02:48]} 18. Qd2 {[%clk 0:02:26]}  Ba6 {[%clk 0:02:46]} 19. Re1 {[%clk 0:02:25]}  Qb7 {[%clk 0:02:37]} 20. Ba4 {[%clk 0:02:22]}  Rb8 {[%clk 0:02:28]} 21. Re2 {[%clk 0:01:59]}  Re8 {[%clk 0:01:49]} 22. Bc6 {[%clk 0:01:43]}  Qc7 {[%clk 0:01:40]} 23. Rxe8+ {[%clk 0:01:33]}  Nxe8 {[%clk 0:01:41]} 24. Bxg7 {[%clk 0:01:33]}  Nxg7 {[%clk 0:01:35]} 25. Ne4 {[%clk 0:01:30]}  Nb8 {[%clk 0:01:27]} 26. Qf4 {[%clk 0:01:14]}  Nxc6 {[%clk 0:01:22]} 27. dxc6 {[%clk 0:01:14]}  Qxc6 {[%clk 0:01:22]} 28. Nxd6 {[%clk 0:01:08]}  Qd5 {[%clk 0:01:15]} 29. Ng5 {[%clk 0:00:45]}  Nf5 {[%clk 0:01:11]} 30. Nxf5 {[%clk 0:00:42]}  Qxf5 {[%clk 0:01:08]} 31. Qxf5 {[%clk 0:00:34]}  gxf5 {[%clk 0:01:09]} 32. f4 {[%clk 0:00:32]}  f6 {[%clk 0:01:08]} 33. Nf3 {[%clk 0:00:32]}  Kf7 {[%clk 0:01:09]} 34. Nd4 {[%clk 0:00:31]}  Bc8 {[%clk 0:01:06]} 35. Nb5 {[%clk 0:00:28]}  Bd7 {[%clk 0:01:06]} 36. Nd6+ {[%clk 0:00:26]}  Ke6 {[%clk 0:01:06]} 37. Nxc4 {[%clk 0:00:27]}  Kd5 {[%clk 0:01:07]} 38. b3 {[%clk 0:00:25]}  Ke4 {[%clk 0:01:07]} 39. g3 {[%clk 0:00:18]}  Kd3 {[%clk 0:00:59]} 40. Kf2 {[%clk 0:00:18]}  Kc2 {[%clk 0:00:59]} 41. Ke3 {[%clk 0:00:16]}  Kb1 {[%clk 0:00:59]} 42. Kd2 {[%clk 0:00:16]}  Kxa2 {[%clk 0:00:59]} 43. Kc3 {[%clk 0:00:16]}  Be6 {[%clk 0:00:59]} 44. Na5 {[%clk 0:00:16]}  Ka3 {[%clk 0:00:57]} 45. b4 {[%clk 0:00:16]}  Ka4 {[%clk 0:00:56]} 46. Nc6 {[%clk 0:00:16]}  a6 {[%clk 0:00:55]} 47. Nd4 {[%clk 0:00:15]}  Bd7 {[%clk 0:00:55]} 48. Kc4 {[%clk 0:00:16]}  Ka3 {[%clk 0:00:56]} 49. Kc3 {[%clk 0:00:16]}  Ka4 {[%clk 0:00:56]} 50. h4 {[%clk 0:00:14]}  h5 {[%clk 0:00:54]} 51. Kc4 {[%clk 0:00:14]}  Ka3 {[%clk 0:00:53]} 52. Kc5 {[%clk 0:00:11]}  Ka4 {[%clk 0:00:54]} 53. Kd6 {[%clk 0:00:08]}  Bc8 {[%clk 0:00:54]} 54. Kc5 {[%clk 0:00:09]}  Bd7 {[%clk 0:00:54]} 55. Nc2 {[%clk 0:00:08]}  Kb3 {[%clk 0:00:53]} 56. Ne3 {[%clk 0:00:08]}  Kc3 {[%clk 0:00:51]} 57. Nd5+ {[%clk 0:00:09]}  Kd3 {[%clk 0:00:44]} 58. Nxf6 {[%clk 0:00:10]}  Bc8 {[%clk 0:00:43]} 59. Nxh5 {[%clk 0:00:10]}  Ke4 {[%clk 0:00:43]} 60. Nf6+ {[%clk 0:00:10]}  Kf3 {[%clk 0:00:44]} 61. h5 {[%clk 0:00:10]}  Kxg3 {[%clk 0:00:44]} 62. h6 {[%clk 0:00:11]}  Kxf4 {[%clk 0:00:45]} 63. h7 {[%clk 0:00:11]}  Ke3 {[%clk 0:00:46]} 64. h8=Q {[%clk 0:00:11]}  f4 {[%clk 0:00:47]} 65. Nd5+ {[%clk 0:00:11]}  Ke4 {[%clk 0:00:43]} 66. Qd4+ {[%clk 0:00:09]}  Kf5 {[%clk 0:00:43]} 67. Qxf4+ {[%clk 0:00:09]}  Ke6 {[%clk 0:00:44]} 68. Qd6+ {[%clk 0:00:08]}  Kf7 {[%clk 0:00:44]} 69. Qc7+ {[%clk 0:00:07]}  Kg6 {[%clk 0:00:44]} 70. Qxc8 {[%clk 0:00:07]}  a5 {[%clk 0:00:45]} 71. Qa6+ {[%clk 0:00:07]}  Kf5 {[%clk 0:00:45]} 72. Qxa5 {[%clk 0:00:08]}  Ke5 {[%clk 0:00:45]} 73. Kc4 {[%clk 0:00:09]}  Ke4 {[%clk 0:00:46]} 74. Kb3 {[%clk 0:00:10]}  Kd4 {[%clk 0:00:46]} 75. Kb2 {[%clk 0:00:11]}  Ke5 {[%clk 0:00:47]} 76. Kb1 {[%clk 0:00:12]}  Kd4 {[%clk 0:00:47]} 77. Ka2 {[%clk 0:00:12]}  Kc4 {[%clk 0:00:48]} 78. Ka3 {[%clk 0:00:13]}  Kd4 {[%clk 0:00:48]} 79. Ka4 {[%clk 0:00:14]}  Kc4 {[%clk 0:00:49]} 80. Qc5+ {[%clk 0:00:14]}  Kd3 {[%clk 0:00:49]} 81. Nb6 {[%clk 0:00:14]}  Ke4 {[%clk 0:00:50]} 82. Kb5 {[%clk 0:00:15]}  Kf4 {[%clk 0:00:51]} 83. Kc6 {[%clk 0:00:16]}  Ke4 {[%clk 0:00:52]} 84. Kc7 {[%clk 0:00:17]}  Kf4 {[%clk 0:00:52]} 85. Kd6 {[%clk 0:00:18]}  Ke4 {[%clk 0:00:53]} 86. Kd7 {[%clk 0:00:19]}  Kf4 {[%clk 0:00:54]} 87. Ke6 {[%clk 0:00:20]}  Kg4 {[%clk 0:00:54]} 88. Ke7 {[%clk 0:00:20]}  Kh4 {[%clk 0:00:55]} 89. Kf6 {[%clk 0:00:21]}  Kg4 {[%clk 0:00:56]} 90. Kf7 {[%clk 0:00:22]}  Kh4 {[%clk 0:00:57]} 91. Kg6 {[%clk 0:00:23]}  Kg4 {[%clk 0:00:57]} 92. Kh6 {[%clk 0:00:24]}  Kh4 {[%clk 0:00:58]} 93. Kh7 {[%clk 0:00:25]}  Kg4 {[%clk 0:00:59]} 94. Kg7 {[%clk 0:00:26]}  Kf4 {[%clk 0:01:00]} 95. Kg8 {[%clk 0:00:27]}  Ke4 {[%clk 0:01:01]} 96. Nc8 {[%clk 0:00:28]}  Kf4 {[%clk 0:01:01]} 97. Kf8 {[%clk 0:00:29]}  Ke4 {[%clk 0:01:02]} 98. Ne7 {[%clk 0:00:29]}  Kf4 {[%clk 0:01:03]} 99. Ke8 {[%clk 0:00:30]}  Ke4 {[%clk 0:01:04]} 100. Kd7 {[%clk 0:00:31]}  Kf4 {[%clk 0:01:05]} 101. Kd8 {[%clk 0:00:32]}  Ke4 {[%clk 0:01:06]} 102. Kc7 {[%clk 0:00:33]}  Kf4 {[%clk 0:01:07]} 103. Kc8 {[%clk 0:00:33]}  Ke4 {[%clk 0:01:08]} 104. b5 {[%clk 0:00:34]}  Kf4 {[%clk 0:01:09]} 105. Kc7 {[%clk 0:00:34]}  Ke4 {[%clk 0:01:10]} 106. Kd8 {[%clk 0:00:35]}  Kf4 {[%clk 0:01:10]} 107. Kd7 {[%clk 0:00:36]}  Ke4 {[%clk 0:01:11]} 108. Ke8 {[%clk 0:00:37]}  Kf4 {[%clk 0:01:12]} 109. Kf7 {[%clk 0:00:38]}  Ke4 {[%clk 0:01:13]} 110. Kf8 {[%clk 0:00:39]}  Kf4 {[%clk 0:01:14]} 111. Kg7 {[%clk 0:00:40]}  Ke4 {[%clk 0:01:15]} 112. Kg8 {[%clk 0:00:41]}  Kf4 {[%clk 0:01:16]} 113. Kh7 {[%clk 0:00:42]}  Ke4 {[%clk 0:01:17]} 114. Kh8 {[%clk 0:00:42]}  Kf4 {[%clk 0:01:18]} 115. Qc6 {[%clk 0:00:42]}  Kg4 {[%clk 0:01:18]} 116. Kg7 {[%clk 0:00:43]}  Kf4 {[%clk 0:01:19]} 117. Kf6 {[%clk 0:00:43]}  Kg4 {[%clk 0:01:20]} 118. Ke5 {[%clk 0:00:44]}  Kg5 {[%clk 0:01:20]} 119. Kd4 {[%clk 0:00:44]}  Kg4 {[%clk 0:01:21]} 120. Kd3 {[%clk 0:00:45]}  Kf4 {[%clk 0:01:21]} 121. Kd2 {[%clk 0:00:46]}  Ke5 {[%clk 0:01:22]} 122. Kc3 {[%clk 0:00:47]}  Kf4 {[%clk 0:01:23]} 123. Kc2 {[%clk 0:00:48]}  Ke5 {[%clk 0:01:23]} 124. Kb3 {[%clk 0:00:49]}  Kf4 {[%clk 0:01:24]} 125. Kb2 {[%clk 0:00:50]}  Ke5 {[%clk 0:01:25]} 126. Ka3 {[%clk 0:00:51]}  Kf4 {[%clk 0:01:26]} 127. Ka4 {[%clk 0:00:52]}  Ke5 {[%clk 0:01:27]} 128. Ka5 {[%clk 0:00:53]}  Kf4 {[%clk 0:01:28]} 129. Ka6 {[%clk 0:00:53]}  Ke5 {[%clk 0:01:29]} 130. Ka7 {[%clk 0:00:54]}  Kd4 {[%clk 0:01:29]} 131. Ka8 {[%clk 0:00:55]}  Ke5 {[%clk 0:01:30]} 132. Kb8 {[%clk 0:00:56]}  Kd4 {[%clk 0:01:31]} 133. Nc8 {[%clk 0:00:57]}  Ke5 {[%clk 0:01:32]} 134. Kc7 {[%clk 0:00:57]}  Kd4 {[%clk 0:01:33]} 135. Kd8 {[%clk 0:00:57]}  Ke5 {[%clk 0:01:34]} 136. Kd7 {[%clk 0:00:57]}  Kd4 {[%clk 0:01:35]} 137. Ke8 {[%clk 0:00:58]}  Ke5 {[%clk 0:01:36]} 138. Ke7 {[%clk 0:00:59]}  Kd4 {[%clk 0:01:36]} 139. Kf8 {[%clk 0:01:00]}  Ke5 {[%clk 0:01:37]} 140. Kf7 {[%clk 0:00:59]}  Kd4 {[%clk 0:01:38]} 141. Na7 {[%clk 0:00:59]}  Ke5 {[%clk 0:01:39]} 142. Kf8 {[%clk 0:00:58]}  Kd4 {[%clk 0:01:40]} 143. b6 {[%clk 0:00:58]}  Ke5 {[%clk 0:01:41]} 144. Ke7 {[%clk 0:00:58]}  Kd4 {[%clk 0:01:42]} 145. Kd8 {[%clk 0:00:59]}  Ke5 {[%clk 0:01:43]} 146. b7 {[%clk 0:00:48]}  Kd4 {[%clk 0:01:44]} 147. b8=N {[%clk 0:00:46]}  Ke5 {[%clk 0:01:45]} 148. Nd7+ {[%clk 0:00:45]}  Kd4 {[%clk 0:01:45]} 149. Nb5+ {[%clk 0:00:44]}  Ke3 {[%clk 0:01:45]} 150. Qc4 {[%clk 0:00:42]}  Kf3 {[%clk 0:01:43]} 151. Ke7 {[%clk 0:00:41]}  Ke3 {[%clk 0:01:44]} 152. Ke6 {[%clk 0:00:41]}  Kf3 {[%clk 0:01:45]} 153. Kf5 {[%clk 0:00:41]}  Ke3 {[%clk 0:01:46]} 154. Qc3+ {[%clk 0:00:40]}  Kf2 {[%clk 0:01:46]} 155. Kf4 {[%clk 0:00:39]}  Ke2 {[%clk 0:01:47]} 156. Qc2+ {[%clk 0:00:39]}  Ke1 {[%clk 0:01:47]} 157. Kf3 {[%clk 0:00:38]}  Kf1 {[%clk 0:01:48]} 158. Qd2 {[%clk 0:00:38]}  Kg1 {[%clk 0:01:48]} 159. Nc3 {[%clk 0:00:37]}  Kf1 {[%clk 0:01:49]} 160. Nf6 {[%clk 0:00:37]}  Kg1 {[%clk 0:01:50]} 161. Ng4 {[%clk 0:00:33]}  Kf1 {[%clk 0:01:51]} 162. Ne4 {[%clk 0:00:32]}  Kg1 {[%clk 0:01:51]} 163. Qe2 {[%clk 0:00:26]}  Kh1 {[%clk 0:01:51]} 164. Ng3+ {[%clk 0:00:24]}  Kg1 {[%clk 0:01:51]} 165. Qg2# {[%clk 0:00:19]} 1-0

[Event "January 2 Early 2024"]
[Site "https://www.chess.com"]
[Date "2024.01.02"]
[Round "8"]
[White "Gabrielian, Artur"]
[Black "Papasimakopoulos, Alexandros"]
[Result "1-0"]
[Board "44"]
[TimeControl "180+1"]
[WhiteFideId "4131002"]
[BlackFideId "4244125"]
[WhiteElo "2800"]
[BlackElo "2651"]
[WhiteTeam "RUS"]
[BlackTeam "GRE"]
[WhiteClock "0:00:14"]
[BlackClock "0:00:15"]

1. e4 {[%clk 0:03:00]}  e6 {[%clk 0:02:52]} 2. d4 {[%clk 0:03:00]}  d5 {[%clk 0:02:53]} 3. Nc3 {[%clk 0:03:00]}  Bb4 {[%clk 0:02:53]} 4. e5 {[%clk 0:03:00]}  c5 {[%clk 0:02:52]} 5. a3 {[%clk 0:03:00]}  Bxc3+ {[%clk 0:02:53]} 6. bxc3 {[%clk 0:03:01]}  Nc6 {[%clk 0:02:53]} 7. Qg4 {[%clk 0:03:00]}  g6 {[%clk 0:02:52]} 8. h4 {[%clk 0:02:59]}  h6 {[%clk 0:02:52]} 9. Nf3 {[%clk 0:02:57]}  Qa5 {[%clk 0:02:48]} 10. Bd2 {[%clk 0:02:56]}  c4 {[%clk 0:02:48]} 11. a4 {[%clk 0:02:50]}  Bd7 {[%clk 0:02:48]} 12. Qf4 {[%clk 0:02:50]}  Rh7 {[%clk 0:02:48]} 13. g3 {[%clk 0:02:46]}  O-O-O {[%clk 0:02:48]} 14. Bh3 {[%clk 0:02:45]}  Nce7 {[%clk 0:02:46]} 15. Ke2 {[%clk 0:02:39]}  Bxa4 {[%clk 0:02:46]} 16. Rhb1 {[%clk 0:02:38]}  b5 {[%clk 0:02:46]} 17. Qe3 {[%clk 0:02:00]}  Nf5 {[%clk 0:02:40]} 18. Bxf5 {[%clk 0:01:59]}  gxf5 {[%clk 0:02:40]} 19. Bc1 {[%clk 0:01:56]}  Ne7 {[%clk 0:02:41]} 20. Ba3 {[%clk 0:01:55]}  Nc6 {[%clk 0:02:41]} 21. Bc5 {[%clk 0:01:54]}  Rg8 {[%clk 0:02:37]} 22. Kd2 {[%clk 0:01:48]}  Rg4 {[%clk 0:02:37]} 23. Kc1 {[%clk 0:01:24]}  Re4 {[%clk 0:02:34]} 24. Qd2 {[%clk 0:01:24]}  a6 {[%clk 0:02:15]} 25. Ng1 {[%clk 0:01:14]}  f4 {[%clk 0:02:09]} 26. Ne2 {[%clk 0:01:11]}  fxg3 {[%clk 0:02:05]} 27. fxg3 {[%clk 0:01:07]}  Rxe2 {[%clk 0:02:01]} 28. Qxe2 {[%clk 0:01:07]}  Qxc3 {[%clk 0:02:02]} 29. Rxa4 {[%clk 0:00:58]}  bxa4 {[%clk 0:02:02]} 30. Qg4 {[%clk 0:00:57]}  Rh8 {[%clk 0:01:28]} 31. Qg7 {[%clk 0:00:52]}  Qe3+ {[%clk 0:00:37]} 32. Kb2 {[%clk 0:00:52]}  Rd8 {[%clk 0:00:35]} 33. Qxf7 {[%clk 0:00:47]}  Nxd4 {[%clk 0:00:31]} 34. Ka2 {[%clk 0:00:44]}  Rd7 {[%clk 0:00:26]} 35. Qe8+ {[%clk 0:00:37]}  Rd8 {[%clk 0:00:27]} 36. Rb8+ {[%clk 0:00:22]}  Kxb8 {[%clk 0:00:27]} 37. Qxd8+ {[%clk 0:00:22]}  Kb7 {[%clk 0:00:27]} 38. Qd7+ {[%clk 0:00:22]}  Kb8 {[%clk 0:00:27]} 39. Qa7+ {[%clk 0:00:18]}  Kc8 {[%clk 0:00:27]} 40. Bxd4 {[%clk 0:00:19]}  Qc1 {[%clk 0:00:22]} 41. Qxa6+ {[%clk 0:00:18]}  Kd8 {[%clk 0:00:20]} 42. Qd6+ {[%clk 0:00:17]}  Kc8 {[%clk 0:00:20]} 43. Qxe6+ {[%clk 0:00:17]}  Kb8 {[%clk 0:00:20]} 44. Qb6+ {[%clk 0:00:16]}  Kc8 {[%clk 0:00:21]} 45. Qc6+ {[%clk 0:00:17]}  Kb8 {[%clk 0:00:21]} 46. Qb5+ {[%clk 0:00:17]}  Kc8 {[%clk 0:00:21]} 47. Qb2 {[%clk 0:00:17]}  Qe1 {[%clk 0:00:20]} 48. Qb5 {[%clk 0:00:16]}  Qc1 {[%clk 0:00:19]} 49. Qxa4 {[%clk 0:00:16]}  h5 {[%clk 0:00:18]} 50. e6 {[%clk 0:00:16]}  Qe1 {[%clk 0:00:17]} 51. Qd7+ {[%clk 0:00:16]}  Kb8 {[%clk 0:00:17]} 52. Qb5+ {[%clk 0:00:14]}  Kc7 {[%clk 0:00:17]} 53. Qc5+ {[%clk 0:00:14]}  Kb8 {[%clk 0:00:17]} 54. Qxd5 {[%clk 0:00:14]}  Qa5+ {[%clk 0:00:15]} 55. Qxa5 {[%clk 0:00:14]} 1-0

[Event "January 2 Early 2024"]
[Site "https://www.chess.com"]
[Date "2024.01.02"]
[Round "8"]
[White "Volkov, Maksim"]
[Black "De Winter, Arthur"]
[Result "1/2-1/2"]
[Board "45"]
[TimeControl "180+1"]
[WhiteFideId "54123070"]
[BlackFideId "1069020"]
[WhiteElo "2651"]
[BlackElo "2799"]
[WhiteTeam "RUS"]
[BlackTeam "NED"]
[WhiteClock "0:00:03"]
[BlackClock "0:00:04"]

1. d4 {[%clk 0:03:00]}  Nf6 {[%clk 0:02:58]} 2. c4 {[%clk 0:03:01]}  g6 {[%clk 0:02:59]} 3. g3 {[%clk 0:03:01]}  Bg7 {[%clk 0:02:59]} 4. Bg2 {[%clk 0:03:02]}  O-O {[%clk 0:03:00]} 5. Nc3 {[%clk 0:03:02]}  d6 {[%clk 0:03:01]} 6. Nf3 {[%clk 0:03:02]}  Nc6 {[%clk 0:03:00]} 7. O-O {[%clk 0:03:03]}  a6 {[%clk 0:03:00]} 8. d5 {[%clk 0:03:03]}  Na5 {[%clk 0:02:59]} 9. b3 {[%clk 0:03:04]}  c5 {[%clk 0:02:57]} 10. dxc6 {[%clk 0:03:04]}  Nxc6 {[%clk 0:02:51]} 11. Bg5 {[%clk 0:03:03]}  h6 {[%clk 0:02:51]} 12. Be3 {[%clk 0:03:03]}  Bd7 {[%clk 0:02:47]} 13. Rc1 {[%clk 0:03:02]}  Rc8 {[%clk 0:02:47]} 14. Ne1 {[%clk 0:03:02]}  Qa5 {[%clk 0:02:32]} 15. Nd3 {[%clk 0:03:00]}  b5 {[%clk 0:02:29]} 16. c5 {[%clk 0:02:49]}  dxc5 {[%clk 0:02:14]} 17. Nxc5 {[%clk 0:02:45]}  Bf5 {[%clk 0:02:12]} 18. Qe1 {[%clk 0:02:23]}  Qa3 {[%clk 0:02:07]} 19. h3 {[%clk 0:02:08]}  Nb4 {[%clk 0:01:54]} 20. g4 {[%clk 0:01:07]}  Nc2 {[%clk 0:01:54]} 21. Nb1 {[%clk 0:01:07]}  Qxa2 {[%clk 0:01:36]} 22. Qd2 {[%clk 0:00:47]}  Rfd8 {[%clk 0:01:33]} 23. Nd3 {[%clk 0:00:41]}  Bxd3 {[%clk 0:01:30]} 24. exd3 {[%clk 0:00:41]}  Qxb3 {[%clk 0:01:31]} 25. Bxh6 {[%clk 0:00:31]}  Qxd3 {[%clk 0:01:25]} 26. Qxd3 {[%clk 0:00:26]}  Rxd3 {[%clk 0:01:24]} 27. Bxg7 {[%clk 0:00:27]}  Kxg7 {[%clk 0:01:24]} 28. g5 {[%clk 0:00:27]}  Nh5 {[%clk 0:01:13]} 29. Be4 {[%clk 0:00:28]}  Nf4 {[%clk 0:01:07]} 30. Bxd3 {[%clk 0:00:28]}  Nxd3 {[%clk 0:01:08]} 31. Rcd1 {[%clk 0:00:29]}  Nf4 {[%clk 0:01:09]} 32. Kh2 {[%clk 0:00:27]}  Rc5 {[%clk 0:01:04]} 33. Rd7 {[%clk 0:00:23]}  Rxg5 {[%clk 0:01:01]} 34. Rxe7 {[%clk 0:00:20]}  Nd4 {[%clk 0:00:52]} 35. Nd2 {[%clk 0:00:18]}  Rh5 {[%clk 0:00:48]} 36. Kg3 {[%clk 0:00:16]}  Nf5+ {[%clk 0:00:40]} 37. Kxf4 {[%clk 0:00:16]}  Nxe7 {[%clk 0:00:41]} 38. Ra1 {[%clk 0:00:15]}  Rxh3 {[%clk 0:00:37]} 39. Rxa6 {[%clk 0:00:15]}  Nd5+ {[%clk 0:00:31]} 40. Ke4 {[%clk 0:00:14]}  Nf6+ {[%clk 0:00:29]} 41. Kf4 {[%clk 0:00:14]}  Rd3 {[%clk 0:00:25]} 42. Nf3 {[%clk 0:00:13]}  Rd5 {[%clk 0:00:24]} 43. Rb6 {[%clk 0:00:12]}  Rf5+ {[%clk 0:00:22]} 44. Kg3 {[%clk 0:00:13]}  Ne4+ {[%clk 0:00:22]} 45. Kg2 {[%clk 0:00:13]}  g5 {[%clk 0:00:21]} 46. Nd4 {[%clk 0:00:09]}  Rxf2+ {[%clk 0:00:21]} 47. Kg1 {[%clk 0:00:10]}  Rf6 {[%clk 0:00:12]} 48. Rxb5 {[%clk 0:00:10]}  Kg6 {[%clk 0:00:13]} 49. Kg2 {[%clk 0:00:09]}  Nd6 {[%clk 0:00:13]} 50. Rd5 {[%clk 0:00:09]}  Nf5 {[%clk 0:00:12]} 51. Nc2 {[%clk 0:00:09]}  Rc6 {[%clk 0:00:10]} 52. Nb4 {[%clk 0:00:04]}  Rc4 {[%clk 0:00:07]} 53. Rb5 {[%clk 0:00:04]}  g4 {[%clk 0:00:03]} 54. Nd5 {[%clk 0:00:03]}  Rc2+ {[%clk 0:00:03]} 55. Kg1 {[%clk 0:00:03]}  g3 {[%clk 0:00:03]} 56. Rb6+ {[%clk 0:00:01]}  Kg5 {[%clk 0:00:03]} 57. Rb5 {[%clk 0:00:02]}  Rc1+ {[%clk 0:00:03]} 58. Kg2 {[%clk 0:00:02]}  Rc2+ {[%clk 0:00:04]} 59. Kg1 {[%clk 0:00:03]}  Kg4 {[%clk 0:00:05]} 60. Rb4+ {[%clk 0:00:03]}  Kg5 {[%clk 0:00:04]} 61. Rb5 {[%clk 0:00:03]} 1/2-1/2

[Event "January 2 Early 2024"]
[Site "https://www.chess.com"]
[Date "2024.01.02"]
[Round "8"]
[White "Vakhlamov, Igor L."]
[Black "Jia, Haoxiang"]
[Result "1-0"]
[Board "46"]
[TimeControl "180+1"]
[WhiteFideId "24126748"]
[BlackFideId "8602999"]
[WhiteElo "2799"]
[BlackElo "2649"]
[WhiteTeam "RUS"]
[BlackTeam "CHN"]
[WhiteClock "0:00:06"]
[BlackClock "0:00:09"]

1. e4 {[%clk 0:03:00]}  c5 {[%clk 0:02:59]} 2. Nf3 {[%clk 0:02:56]}  d6 {[%clk 0:02:59]} 3. Nc3 {[%clk 0:02:56]}  Nf6 {[%clk 0:02:59]} 4. d4 {[%clk 0:02:57]}  cxd4 {[%clk 0:02:59]} 5. Qxd4 {[%clk 0:02:58]}  Nc6 {[%clk 0:02:59]} 6. Bb5 {[%clk 0:02:58]}  Bd7 {[%clk 0:02:59]} 7. Bxc6 {[%clk 0:02:58]}  Bxc6 {[%clk 0:03:00]} 8. Bg5 {[%clk 0:02:59]}  e6 {[%clk 0:03:01]} 9. O-O-O {[%clk 0:02:59]}  Be7 {[%clk 0:03:02]} 10. Rhe1 {[%clk 0:03:00]}  O-O {[%clk 0:02:56]} 11. e5 {[%clk 0:02:59]}  dxe5 {[%clk 0:02:53]} 12. Nxe5 {[%clk 0:03:00]}  Qxd4 {[%clk 0:02:42]} 13. Rxd4 {[%clk 0:03:01]}  Rfd8 {[%clk 0:02:32]} 14. Nxc6 {[%clk 0:02:54]}  bxc6 {[%clk 0:02:31]} 15. Rxd8+ {[%clk 0:02:54]}  Rxd8 {[%clk 0:02:31]} 16. Ne4 {[%clk 0:02:53]}  Kf8 {[%clk 0:02:26]} 17. Nxf6 {[%clk 0:02:52]}  gxf6 {[%clk 0:02:23]} 18. Bh6+ {[%clk 0:02:52]}  Ke8 {[%clk 0:02:24]} 19. Re4 {[%clk 0:02:48]}  f5 {[%clk 0:02:21]} 20. Rc4 {[%clk 0:02:45]}  Kd7 {[%clk 0:02:19]} 21. Be3 {[%clk 0:02:43]}  Kc7 {[%clk 0:02:07]} 22. Ra4 {[%clk 0:02:38]}  Ra8 {[%clk 0:01:57]} 23. g3 {[%clk 0:02:14]}  a5 {[%clk 0:01:52]} 24. c3 {[%clk 0:02:05]}  c5 {[%clk 0:01:51]} 25. Kc2 {[%clk 0:02:00]}  Kc6 {[%clk 0:01:51]} 26. b3 {[%clk 0:01:54]}  Kb5 {[%clk 0:01:51]} 27. Bd2 {[%clk 0:01:38]}  e5 {[%clk 0:01:43]} 28. a3 {[%clk 0:01:36]}  Bd6 {[%clk 0:01:29]} 29. Rh4 {[%clk 0:01:32]}  a4 {[%clk 0:01:21]} 30. c4+ {[%clk 0:01:18]}  Kc6 {[%clk 0:01:20]} 31. b4 {[%clk 0:01:19]}  cxb4 {[%clk 0:01:19]} 32. axb4 {[%clk 0:01:20]}  a3 {[%clk 0:01:17]} 33. Kb1 {[%clk 0:01:15]}  a2+ {[%clk 0:01:12]} 34. Ka1 {[%clk 0:01:14]}  Ra3 {[%clk 0:00:51]} 35. Rxh7 {[%clk 0:01:07]}  e4 {[%clk 0:00:51]} 36. Rh6 {[%clk 0:00:33]}  Kd7 {[%clk 0:00:40]} 37. Bf4 {[%clk 0:00:31]}  Bxb4 {[%clk 0:00:37]} 38. Be5 {[%clk 0:00:31]}  Ra5 {[%clk 0:00:27]} 39. Bd4 {[%clk 0:00:26]}  Bd2 {[%clk 0:00:22]} 40. Rb6 {[%clk 0:00:19]}  Ra4 {[%clk 0:00:22]} 41. Rb2 {[%clk 0:00:18]}  Be1 {[%clk 0:00:20]} 42. Rxa2 {[%clk 0:00:18]}  Rxc4 {[%clk 0:00:20]} 43. Be3 {[%clk 0:00:18]}  Bc3+ {[%clk 0:00:15]} 44. Kb1 {[%clk 0:00:18]}  Be5 {[%clk 0:00:15]} 45. h4 {[%clk 0:00:15]}  Rc6 {[%clk 0:00:14]} 46. Ra5 {[%clk 0:00:15]}  Ke6 {[%clk 0:00:14]} 47. h5 {[%clk 0:00:15]}  Rc8 {[%clk 0:00:14]} 48. Ra6+ {[%clk 0:00:15]}  Kd5 {[%clk 0:00:13]} 49. Ra5+ {[%clk 0:00:15]}  Ke6 {[%clk 0:00:14]} 50. h6 {[%clk 0:00:15]}  Rh8 {[%clk 0:00:13]} 51. Kc2 {[%clk 0:00:16]}  Bf6 {[%clk 0:00:11]} 52. Ra6+ {[%clk 0:00:15]}  Ke5 {[%clk 0:00:12]} 53. Ra5+ {[%clk 0:00:13]}  Ke6 {[%clk 0:00:12]} 54. Ra6+ {[%clk 0:00:13]}  Ke7 {[%clk 0:00:12]} 55. Kb3 {[%clk 0:00:07]}  Rb8+ {[%clk 0:00:11]} 56. Kc4 {[%clk 0:00:07]}  Be5 {[%clk 0:00:10]} 57. Kd5 {[%clk 0:00:07]}  Rb5+ {[%clk 0:00:10]} 58. Bc5+ {[%clk 0:00:06]}  Kd7 {[%clk 0:00:10]} 59. Ra7+ {[%clk 0:00:06]}  Ke8 {[%clk 0:00:10]} 60. Kxe5 {[%clk 0:00:06]}  Rxc5+ {[%clk 0:00:10]} 61. Kf4 {[%clk 0:00:05]}  Rc6 {[%clk 0:00:08]} 62. h7 {[%clk 0:00:04]}  Rh6 {[%clk 0:00:09]} 63. h8=Q+ {[%clk 0:00:05]}  Rxh8 {[%clk 0:00:09]} 64. Ra8+ {[%clk 0:00:05]}  Ke7 {[%clk 0:00:09]} 65. Rxh8 {[%clk 0:00:06]}  Kf6 {[%clk 0:00:10]} 66. Ra8 {[%clk 0:00:06]}  Kg7 {[%clk 0:00:09]} 67. Ra5 {[%clk 0:00:06]} 1-0

[Event "January 2 Early 2024"]
[Site "https://www.chess.com"]
[Date "2024.01.02"]
[Round "8"]
[White "Al-Tarboush, Ward"]
[Black "Krzyzanowski, Marcin"]
[Result "0-1"]
[Board "48"]
[TimeControl "180+1"]
[WhiteFideId "7601450"]
[BlackFideId "1132199"]
[WhiteElo "2634"]
[BlackElo "2779"]
[WhiteTeam "NOR"]
[BlackTeam "POL"]
[WhiteClock "0:00:00"]
[BlackClock "0:01:54"]

1. e4 {[%clk 0:03:00]}  c6 {[%clk 0:02:58]} 2. Nf3 {[%clk 0:02:59]}  d5 {[%clk 0:02:58]} 3. Nc3 {[%clk 0:02:57]}  dxe4 {[%clk 0:02:58]} 4. Nxe4 {[%clk 0:02:58]}  Nf6 {[%clk 0:02:58]} 5. Nxf6+ {[%clk 0:02:50]}  exf6 {[%clk 0:02:58]} 6. Bc4 {[%clk 0:02:49]}  Bd6 {[%clk 0:02:58]} 7. Qe2+ {[%clk 0:02:48]}  Be7 {[%clk 0:02:57]} 8. O-O {[%clk 0:02:47]}  O-O {[%clk 0:02:57]} 9. d4 {[%clk 0:02:46]}  Bd6 {[%clk 0:02:53]} 10. Re1 {[%clk 0:02:44]}  Bg4 {[%clk 0:02:52]} 11. Qe4 {[%clk 0:02:38]}  Qd7 {[%clk 0:02:39]} 12. Nh4 {[%clk 0:02:13]}  Na6 {[%clk 0:02:32]} 13. Be3 {[%clk 0:01:12]}  Nb4 {[%clk 0:02:32]} 14. h3 {[%clk 0:00:59]}  f5 {[%clk 0:02:29]} 15. Nxf5 {[%clk 0:00:33]}  Bxf5 {[%clk 0:02:29]} 16. Qf3 {[%clk 0:00:33]}  Nxc2 {[%clk 0:02:27]} 17. g4 {[%clk 0:00:29]}  Nxe1 {[%clk 0:02:24]} 18. Rxe1 {[%clk 0:00:24]}  Be6 {[%clk 0:02:20]} 19. Bd3 {[%clk 0:00:20]}  f5 {[%clk 0:02:20]} 20. Bg5 {[%clk 0:00:13]}  Bd5 {[%clk 0:02:17]} 21. Qd1 {[%clk 0:00:10]}  fxg4 {[%clk 0:02:15]} 22. Bc2 {[%clk 0:00:08]}  Rae8 {[%clk 0:02:08]} 23. Re3 {[%clk 0:00:03]}  Rxe3 {[%clk 0:02:07]} 24. Bxe3 {[%clk 0:00:00]}  gxh3 {[%clk 0:01:54]} 0-1